bitfinex/quotes_ETHUSD_20211001
["timestamp","ask_amount","ask_price","bid_price","bid_amount"]
[1633109058053,0.006,3270.7,3270.6,4.07899189]
[1633109058254,0.006,3270.9,3270.7,11.05]
[1633109058454,0.80676458,3271.8,3271.2,0.99495757]
[1633109058654,0.80676458,3271.8,3271.6,1.10968551]
[1633109058655,0.005592,3271.8,3271.6,1.10968551]
[1633109059655,0.005592,3271.8,3271.7,8.56594425]
[1633109059956,0.005592,3271.8,3271.7,8.74994425]
[1633109060156,0.005592,3271.8,3271.7,10.07303845]
[1633109060356,0.005592,3271.8,3271.7,11.59077226]
[1633109060555,0.006,3272.1,3271.8,15.4770738]
[1633109060755,0.006,3272.1,3271.9,14.44337852]
[1633109060955,0.006,3272.1,3271.9,21.73274397]
[1633109061157,0.006,3272.1,3271.9,8.07684397]
[1633109061357,0.006,3272.1,3271.9,8.28123381]
[1633109062755,0.006,3272.1,3271.9,9.57523381]
[1633109063555,0.006,3272.1,3271.9,8.28123381]
[1633109065157,0.006,3272.1,3272.0,15.244]
[1633109065358,0.006,3272.2,3272.1,14.28677302]
[1633109065557,0.006,3272.2,3272.1,14.47077302]
[1633109065756,0.006,3272.2,3272.1,39.21724713]
[1633109065959,0.006,3272.3,3272.2,14.28538465]
[1633109066162,0.006,3272.3,3272.2,15.79690389]
[1633109066358,0.006,3272.4,3272.3,13.6494591]
[1633109066557,0.006,3272.4,3272.3,31.8533721]
[1633109066757,0.006,3272.4,3272.3,32.05767633]
[1633109066962,0.006,3272.4,3272.3,0.81767633]
[1633109067158,0.006,3272.4,3272.3,0.46821723]
[1633109067364,0.006,3272.4,3272.3,5.04906723]
[1633109067558,0.006,3272.4,3272.3,4.96915423]
[1633109067759,0.00589229,3272.6,3272.3,4.96915423]
[1633109067959,0.00589229,3272.6,3272.4,0.29449294]
[1633109068159,0.00589229,3272.6,3272.5,0.3913893]
[1633109068359,0.00589229,3272.6,3272.5,0.184]
[1633109068560,0.00589229,3272.6,3272.5,5.31163782]
[1633109069863,0.00589229,3272.6,3272.5,8.36076471]
[1633109070061,0.00589229,3272.6,3272.5,5.31163782]
[1633109070664,0.00589229,3272.6,3272.5,5.57721376]
[1633109071065,0.00589229,3272.6,3272.5,5.31163782]
[1633109072070,0.00589229,3272.6,3272.5,5.05859]
[1633109072466,0.00589229,3272.6,3272.5,6.35259]
[1633109072667,0.00589229,3272.6,3272.5,5.3883092]
[1633109072866,0.00589229,3272.6,3272.5,5.05859]
[1633109075475,0.00589229,3272.6,3272.5,5.32416594]
[1633109076270,0.00589229,3272.6,3272.5,5.05859]
[1633109077872,0.83641975,3273.3,3272.7,0.79878601]
[1633109077873,0.78131204,3273.3,3272.7,0.79878601]
[1633109078072,0.78131204,3273.3,3272.8,0.184]
[1633109078272,0.78131204,3273.3,3272.8,0.4781]
[1633109079078,0.78131204,3273.3,3272.5,0.003]
[1633109079079,3.0549,3273.1,3272.5,0.003]
[1633109079376,13.9,3273.2,3272.0,0.003]
[1633109079377,0.713085,3272.5,3272.0,0.003]
[1633109079779,2.037385,3272.5,3271.2,0.006]
[1633109079977,1.14920564,3271.8,3271.3,0.006]
[1633109080175,3.85248,3271.9,3271.0,6.11129]
[1633109080375,3.85248,3271.9,3271.1,0.006]
[1633109080775,3.80248,3271.9,3271.1,0.006]
[1633109080975,3.00578,3271.9,3271.1,0.89872956]
[1633109081177,3.00578,3271.9,3271.6,1.03883129]
[1633109081378,3.00578,3271.9,3271.2,0.006]
[1633109081576,3.00578,3271.9,3271.7,0.003]
[1633109081976,3.00578,3271.9,3271.6,0.003]
[1633109082176,3.00578,3271.9,3271.5,0.003]
[1633109082379,3.00578,3271.9,3271.5,1.01916353]
[1633109082775,3.00578,3271.9,3271.6,0.003]
[1633109082977,1.294,3271.8,3271.6,0.003]
[1633109083178,3.00578,3271.9,3271.7,0.20443876]
[1633109083575,3.00578,3271.9,3271.8,0.003]
[1633109084175,9.49978,3271.9,3271.8,0.003]
[1633109084380,4.29978,3271.9,3271.8,0.003]
[1633109085775,11.9750482,3271.9,3271.8,0.003]
[1633109086578,5.4750482,3271.9,3271.8,0.003]
[1633109087382,13.9,3271.8,3271.5,0.003]
[1633109087584,13.9,3271.8,3271.0,0.003]
[1633109087585,13.9,3271.6,3271.0,0.003]
[1633109087779,13.9,3271.6,3270.7,0.003]
[1633109087980,0.184,3271.8,3271.0,0.003]
[1633109087981,0.95918659,3271.1,3271.0,0.003]
[1633109088178,3.05693,3271.4,3271.0,0.003]
[1633109088379,3.93771057,3271.4,3270.8,0.85108966]
[1633109088779,6.99464057,3271.4,3271.1,0.10237842]
[1633109089177,1.294,3271.3,3271.1,0.10237842]
[1633109089377,6.99464057,3271.4,3271.1,0.10237842]
[1633109089979,6.11386,3271.4,3271.1,0.10237842]
[1633109094246,7.10417754,3271.4,3271.1,0.10237842]
[1633109094646,6.11386,3271.4,3271.1,0.10237842]
[1633109098248,7.11863562,3271.4,3271.1,0.10237842]
[1633109099451,11.70382562,3271.4,3271.1,0.10237842]
[1633109099650,3.0567633,3271.3,3271.1,0.10237842]
[1633109100851,6.11386,3271.4,3271.1,0.10237842]
[1633109101851,7.19212973,3271.4,3271.1,0.10237842]
[1633109102054,0.10797084,3271.3,3271.0,4.58455]
[1633109102256,0.90405989,3271.1,3270.8,1.11034576]
[1633109102453,0.10797084,3271.3,3271.0,0.003]
[1633109102653,1.294,3271.2,3270.9,0.003]
[1633109102853,1.89618583,3271.0,3270.7,0.003]
[1633109103055,11.23189189,3270.6,3270.5,0.003]
[1633109103259,11.23189189,3270.6,3270.2,2.39306366]
[1633109103260,2.26589189,3270.6,3270.3,0.003]
[1633109103466,8.01663203,3270.4,3270.3,0.003]
[1633109103655,6.14289287,3270.4,3270.3,0.003]
[1633109103854,0.99289287,3270.4,3270.0,2.39378986]
[1633109104055,0.99289287,3270.4,3270.1,0.003]
[1633109104654,2.0961921,3270.4,3270.1,0.003]
[1633109104855,5.1537921,3270.4,3270.1,0.003]
[1633109106057,15.71511923,3270.2,3270.1,0.003]
[1633109106255,15.89911923,3270.2,3270.1,0.003]
[1633109106456,14.084,3270.2,3270.1,0.003]
[1633109106655,14.084,3270.2,3269.7,2.39412288]
[1633109107055,14.084,3270.2,3269.8,0.006]
[1633109107258,13.54299611,3269.9,3269.8,0.006]
[1633109107457,13.72699611,3269.9,3269.8,0.006]
[1633109108058,2.02699611,3269.9,3269.8,0.006]
[1633109108259,3.32099611,3269.9,3269.8,0.006]
[1633109109061,3.4287144,3269.9,3269.8,0.006]
[1633109109460,7.6787144,3269.9,3269.8,0.01465813]
[1633109109857,2.1347144,3269.9,3269.8,0.01465813]
[1633109110058,3.4287144,3269.9,3269.8,0.01465813]
[1633109110457,7.6287144,3269.9,3269.8,0.01465813]
[1633109110857,12.2163844,3269.9,3269.8,0.01465813]
[1633109111063,3.4287144,3269.9,3269.8,0.01465813]
[1633109111660,0.29171829,3269.9,3269.8,0.01465813]
[1633109112556,1.04217813,3269.9,3269.8,0.01465813]
[1633109112758,2.15906318,3269.9,3269.8,0.01465813]
[1633109114359,2.05134489,3269.9,3269.8,0.01465813]
[1633109114559,2.05134489,3269.9,3269.8,0.11734257]
[1633109116361,0.93445984,3269.9,3269.8,0.11734257]
[1633109119562,0.184,3269.9,3269.8,0.11734257]
[1633109119865,3.09637303,3270.1,3269.8,1.03419958]
[1633109119866,0.03795303,3270.1,3269.8,1.03419958]
[1633109120062,3.24216,3270.3,3269.8,1.03419958]
[1633109120264,3.24216,3270.3,3269.9,0.006]
[1633109120265,3.27826109,3270.3,3269.9,0.006]
[1633109120661,4.25060935,3270.3,3270.1,0.00865813]
[1633109121063,4.25060935,3270.3,3270.2,0.003]
[1633109122063,5.2748407,3270.3,3270.2,0.003]
[1633109123869,4.25060935,3270.3,3270.2,0.003]
[1633109125268,5.16376086,3270.3,3270.2,0.003]
[1633109125868,5.16376086,3270.3,3270.2,0.01165813]
[1633109126068,5.16376086,3270.3,3270.2,0.00865813]
[1633109126472,4.25060935,3270.3,3270.2,0.00865813]
[1633109128069,5.22024149,3270.3,3270.2,0.00865813]
[1633109129074,5.17950631,3270.3,3270.2,0.00865813]
[1633109129272,15.77350631,3270.3,3270.2,0.00865813]
[1633109129470,14.47950631,3270.3,3270.2,0.00865813]
[1633109129871,13.9,3270.2,3269.0,3.16051776]
[1633109130070,1.44698326,3269.9,3269.1,0.003]
[1633109130273,0.75786104,3269.3,3269.1,0.003]
[1633109130471,3.81641104,3269.3,3268.9,0.006]
[1633109130670,3.81641104,3269.3,3269.0,0.003]
[1633109131072,3.0586444,3269.2,3268.9,0.006]
[1633109132476,1.12585639,3269.0,3268.9,0.006]
[1633109132873,1.30985639,3269.0,3268.9,0.006]
[1633109133273,13.0,3268.9,3268.6,4.7886105]
[1633109133473,3.059641,3268.7,3268.3,0.003]
[1633109133673,3.05965,3268.5,3268.3,0.003]
[1633109133887,0.87245789,3268.4,3268.3,0.003]
[1633109134675,1.8169202,3268.4,3268.3,0.003]
[1633109134875,1.97571925,3268.4,3268.3,0.003]
[1633109135275,0.89439777,3267.9,3267.8,0.003]
[1633109135476,0.89439777,3267.9,3267.4,2.466]
[1633109135477,2.0349119,3267.9,3267.4,2.466]
[1633109135674,0.89439777,3267.9,3267.5,0.006]
[1633109135875,3.0601053,3268.0,3267.5,0.006]
[1633109137076,8.09045696,3268.0,3267.5,0.006]
[1633109137274,6.94818127,3268.0,3267.5,0.006]
[1633109137475,3.06011,3267.9,3267.5,0.006]
[1633109137675,3.06009,3268.0,3267.5,0.006]
[1633109137875,0.184,3268.2,3267.7,1.294]
[1633109138075,0.184,3268.2,3267.6,0.077638]
[1633109138275,0.184,3268.2,3267.9,1.20676797]
[1633109138475,0.184,3268.2,3268.1,0.86894782]
[1633109138677,3.21797905,3268.4,3268.1,0.86894782]
[1633109138877,3.21797905,3268.4,3268.2,4.58845]
[1633109139479,3.21797905,3268.4,3268.0,0.003]
[1633109139880,3.21797905,3268.4,3268.0,4.59192]
[1633109140275,0.184,3268.6,3268.0,5.51304346]
[1633109140477,0.184,3268.6,3268.0,5.58619446]
[1633109140478,3.05894,3268.5,3268.0,5.58619446]
[1633109141077,3.05894,3268.5,3268.0,5.51304346]
[1633109141279,3.05894,3268.5,3268.0,0.05475879]
[1633109142081,3.05927,3268.4,3268.0,0.05475879]
[1633109142277,3.8533155,3268.4,3268.0,0.05475879]
[1633109142477,3.8533155,3268.4,3268.0,4.64366879]
[1633109143277,3.0596331,3268.3,3268.0,0.05475879]
[1633109143677,3.05927,3268.4,3268.1,1.02236262]
[1633109144478,3.05927,3268.4,3268.1,4.58878]
[1633109144879,3.05927,3268.4,3268.0,0.05475879]
[1633109146080,4.06467849,3268.4,3268.0,4.64368879]
[1633109146280,3.05927,3268.4,3268.0,4.64368879]
[1633109151284,3.05927,3268.4,3268.0,0.05475879]
[1633109151486,6.1187913,3268.4,3268.0,0.05475879]
[1633109151687,6.15654313,3268.4,3268.0,0.05475879]
[1633109151896,0.184,3268.3,3268.0,0.05475879]
[1633109152490,3.24379,3268.3,3268.0,0.05475879]
[1633109152685,3.28025433,3268.3,3268.0,0.05475879]
[1633109152887,5.88393,3268.2,3268.0,0.05475879]
[1633109153088,5.88393,3268.2,3267.5,0.003]
[1633109153089,9.9,3268.1,3267.5,0.003]
[1633109153288,3.1813944,3268.0,3267.5,0.003]
[1633109153489,0.03136155,3268.2,3267.5,0.003]
[1633109153490,0.184,3267.9,3267.5,0.003]
[1633109153686,0.184,3267.8,3267.5,0.003]
[1633109154085,1.87472711,3267.7,3267.5,0.003]
[1633109154686,6.46539711,3267.7,3267.5,0.003]
[1633109154889,1.87472711,3267.7,3267.5,0.003]
[1633109155287,9.044,3267.6,3267.5,0.003]
[1633109155489,1.294,3267.6,3267.5,0.003]
[1633109158689,1.87472711,3267.7,3267.5,0.003]
[1633109160690,2.05927046,3267.7,3267.5,0.003]
[1633109160895,0.18454335,3267.7,3267.5,0.003]
[1633109161791,5.15333322,3267.6,3267.5,0.003]
[1633109161991,2.11509948,3267.6,3267.5,0.003]
[1633109162995,3.27622808,3267.7,3267.5,0.003]
[1633109163992,1.94498815,3267.6,3267.5,0.003]
[1633109164796,0.99015519,3267.6,3267.5,0.003]
[1633109165597,3.27622808,3267.7,3267.5,0.003]
[1633109165992,3.98452537,3267.6,3267.5,0.003]
[1633109166192,0.18452537,3267.6,3267.5,0.02902653]
[1633109171396,3.98979078,3267.7,3267.5,0.003]
[1633109173595,8.58036078,3267.7,3267.5,0.003]
[1633109175798,8.58036078,3267.7,3267.5,4.59269]
[1633109175799,3.09168473,3267.7,3267.5,4.59269]
[1633109176398,3.09168473,3267.7,3267.5,0.003]
[1633109176858,4.00463627,3267.7,3267.6,0.02601426]
[1633109178458,4.18863627,3267.7,3267.6,0.02601426]
[1633109179458,13.9,3267.6,3267.3,2.87012506]
[1633109179657,20.48263627,3267.7,3267.0,0.003]
[1633109179658,11.47404863,3267.4,3267.0,0.003]
[1633109179866,0.184,3267.3,3266.9,0.003]
[1633109180466,0.76977944,3267.1,3266.9,0.003]
[1633109180669,4.884,3267.0,3266.9,0.003]
[1633109180867,0.184,3267.0,3266.9,0.003]
[1633109181667,6.034,3267.0,3266.9,0.003]
[1633109182267,0.184,3267.0,3266.9,0.003]
[1633109182467,1.68614382,3266.8,3266.5,0.003]
[1633109182669,0.184,3266.7,3266.5,0.003]
[1633109182869,11.22526067,3266.6,3266.1,0.003]
[1633109183069,3.0619585,3266.4,3265.7,0.006]
[1633109183272,0.184,3266.3,3265.7,0.006]
[1633109183468,0.95133321,3266.2,3265.7,0.006]
[1633109183671,3.24607,3266.1,3265.7,0.006]
[1633109183875,3.24607,3266.1,3265.7,4.5981]
[1633109184070,3.24607,3266.1,3265.7,0.006]
[1633109184268,3.24607,3266.1,3265.8,0.006]
[1633109184871,6.3077,3266.1,3265.8,4.59804]
[1633109185069,6.33986,3266.1,3265.8,4.59804]
[1633109185271,6.33986,3266.1,3265.9,0.006]
[1633109185469,0.88753949,3266.0,3265.9,0.006]
[1633109185668,6.33986,3266.1,3265.7,0.006]
[1633109187270,7.13140981,3266.1,3265.7,0.006]
[1633109187869,7.13140981,3266.1,3265.8,0.0219671]
[1633109188070,0.19723441,3266.0,3265.8,0.0219671]
[1633109188270,0.19723441,3266.0,3265.9,0.006]
[1633109192476,0.19723441,3266.0,3265.6,2.4379671]
[1633109193276,4.22210842,3266.1,3265.6,2.4379671]
[1633109193487,0.20819996,3265.9,3265.6,2.4379671]
[1633109193676,0.20819996,3265.9,3265.5,0.003]
[1633109194079,3.26978996,3265.9,3265.5,0.003]
[1633109194283,0.184,3265.8,3265.5,0.003]
[1633109194479,4.59345,3265.7,3265.5,0.003]
[1633109194678,11.00502311,3265.6,3265.5,0.003]
[1633109194878,1.00502311,3265.6,3265.5,0.003]
[1633109196079,1.2592944,3265.6,3265.5,0.003]
[1633109197081,6.95129206,3265.6,3265.5,0.003]
[1633109197280,5.8530744,3265.6,3265.5,0.003]
[1633109198682,1.2592944,3265.6,3265.5,0.003]
[1633109199083,0.23788615,3265.5,3264.9,0.006]
[1633109199281,0.184,3265.4,3264.9,0.006]
[1633109199484,0.184,3265.3,3264.9,0.006]
[1633109199681,5.23029185,3265.3,3264.9,0.006]
[1633109199881,6.36929185,3265.3,3264.9,0.006]
[1633109200082,4.38542,3265.3,3264.9,0.006]
[1633109200281,4.38542,3265.3,3264.8,0.006]
[1633109200481,3.24642,3265.3,3264.8,0.006]
[1633109200682,6.3096295,3265.3,3264.8,0.74983751]
[1633109200883,6.3096295,3265.3,3264.8,1.67886989]
[1633109201084,6.3096295,3265.3,3264.9,0.006]
[1633109201085,3.24642,3265.3,3264.9,0.006]
[1633109201483,3.24642,3265.3,3264.8,0.69983751]
[1633109202484,3.0629023,3265.2,3264.8,0.69983751]
[1633109202684,0.184,3265.1,3264.8,0.69983751]
[1633109204284,0.184,3265.1,3264.7,2.46]
[1633109204489,0.39205532,3265.1,3264.7,2.46]
[1633109205286,0.39205532,3265.1,3264.4,0.003]
[1633109205287,0.93490178,3264.9,3264.4,0.003]
[1633109205893,3.10123881,3265.0,3264.4,0.003]
[1633109206087,6.30994,3265.0,3264.4,0.003]
[1633109206889,7.02941438,3265.0,3264.4,0.003]
[1633109207088,0.184,3265.0,3264.9,7.0]
[1633109207294,0.24121696,3265.1,3264.8,4.59321]
[1633109207295,0.20805532,3265.1,3264.8,4.59321]
[1633109208092,0.85864816,3264.9,3264.6,6.12428]
[1633109208291,0.85864816,3264.9,3264.5,0.003]
[1633109208292,3.92191816,3264.9,3264.5,0.003]
[1633109208497,3.95375513,3264.9,3264.4,0.003]
[1633109208690,0.03183697,3264.9,3264.4,0.003]
[1633109209092,0.39205532,3265.1,3264.4,0.003]
[1633109209291,0.39205532,3265.1,3264.4,4.59705]
[1633109209491,0.184,3265.1,3264.4,4.59705]
[1633109209690,0.184,3265.1,3264.8,0.74819509]
[1633109210089,0.3920192,3265.1,3264.8,0.74819509]
[1633109210695,3.4548301,3265.1,3264.8,0.74819509]
[1633109210891,0.3920192,3265.1,3264.8,0.74819509]
[1633109212398,0.3920192,3265.1,3264.9,4.47058898]
[1633109212399,0.2080192,3265.1,3264.9,4.47058898]
[1633109212593,0.2080192,3265.1,3265.0,4.59245]
[1633109213196,0.2080192,3265.1,3265.0,5.4923175]
[1633109213796,0.2080192,3265.1,3265.0,6.7863175]
[1633109214999,0.003,3265.5,3265.0,6.7863175]
[1633109215195,0.003,3265.5,3265.2,1.294]
[1633109215396,0.003,3265.5,3265.3,3.10080269]
[1633109215597,0.003,3265.5,3265.4,13.979913]
[1633109215598,0.21110985,3265.5,3265.4,13.979913]
[1633109215996,0.21110985,3265.5,3265.4,0.079913]
[1633109216196,0.21110985,3265.5,3265.4,0.80741346]
[1633109216402,0.21110985,3265.5,3265.4,2.10141346]
[1633109217794,0.19599632,3265.5,3265.4,2.10141346]
[1633109219998,0.19599632,3265.5,3265.4,2.28541346]
[1633109219999,9.632e-05,3265.5,3265.4,2.28541346]
[1633109220203,9.632e-05,3265.5,3265.4,5.73541346]
[1633109220396,0.003,3266.0,3265.4,1.557913]
[1633109220596,0.003,3266.0,3265.5,0.10654571]
[1633109220796,0.003,3266.0,3265.7,1.294]
[1633109220997,0.003,3266.0,3265.9,0.95126505]
[1633109221196,0.003,3266.0,3265.9,5.54299505]
[1633109221396,0.003,3266.0,3265.9,6.54664947]
[1633109222401,0.003,3266.0,3265.9,4.59173]
[1633109222601,0.003,3266.0,3265.6,6.1222]
[1633109222804,0.003,3266.0,3265.1,0.071922]
[1633109223001,0.003,3266.0,3264.9,0.003]
[1633109223199,0.003,3266.0,3264.8,0.003]
[1633109223401,0.90540579,3265.7,3265.2,1.2023393]
[1633109223599,0.90540579,3265.7,3265.1,6.12363]
[1633109224599,0.03442715,3265.8,3265.1,7.02234885]
[1633109224998,6.16352133,3265.9,3265.4,1.04907038]
[1633109225802,0.184,3265.8,3265.6,4.59253]
[1633109225999,0.184,3265.7,3265.2,6.12359]
[1633109226209,0.184,3265.6,3265.5,0.11749327]
[1633109226599,0.28003153,3265.6,3265.1,0.97064085]
[1633109226801,0.28003153,3265.6,3265.4,4.59285]
[1633109227600,0.28003153,3265.6,3265.4,5.68366672]
[1633109229205,0.28003153,3265.6,3265.4,4.59285]
[1633109231264,0.28003153,3265.6,3265.3,6.12332]
[1633109231464,0.184,3265.6,3265.3,6.12332]
[1633109231663,0.184,3265.6,3265.5,0.1175306]
[1633109232063,0.184,3265.6,3265.1,0.89871885]
[1633109232265,0.90717248,3265.5,3265.1,0.89871885]
[1633109232466,0.09603164,3265.5,3265.1,0.89871885]
[1633109232866,0.09603164,3265.5,3265.0,0.003]
[1633109233067,0.09603164,3265.5,3265.2,6.12337]
[1633109233866,0.09603164,3265.5,3265.3,0.70718551]
[1633109234267,0.09603164,3265.5,3265.4,4.59267]
[1633109234468,7.62004558,3265.5,3265.4,7e-05]
[1633109234669,7.80404558,3265.5,3265.4,7e-05]
[1633109235270,9.2,3265.4,3264.4,6.07982]
[1633109235471,6.12546,3265.1,3264.6,0.81013637]
[1633109235669,0.187,3265.0,3264.6,0.81013637]
[1633109236674,0.187,3265.0,3264.7,1.03562934]
[1633109237071,0.187,3265.0,3264.8,0.11767999]
[1633109237274,0.003,3265.0,3264.8,0.11767999]
[1633109237472,0.09893078,3265.0,3264.2,6.196982]
[1633109238272,0.09893078,3265.0,3264.6,4.5939]
[1633109238476,0.75019347,3264.8,3264.6,4.5939]
[1633109238672,0.09893078,3265.0,3264.6,4.5939]
[1633109239673,0.90569923,3264.9,3264.6,4.5939]
[1633109241679,3.96892923,3264.9,3264.0,0.003]
[1633109242079,4.00322186,3264.9,3264.0,7.59418369]
[1633109242279,4.00322186,3264.9,3264.0,4.59471]
[1633109242280,0.93999186,3264.9,3264.0,4.59471]
[1633109242484,0.93999186,3264.9,3264.7,1.06447543]
[1633109242485,0.90569923,3264.9,3264.7,1.06447543]
[1633109242682,0.90569923,3264.9,3264.1,0.11779207]
[1633109242882,3.0630967,3264.8,3264.1,0.11779207]
[1633109243082,3.96879923,3264.9,3264.1,6.24335207]
[1633109243083,0.90569923,3264.9,3264.1,6.24335207]
[1633109243280,0.09585744,3264.8,3264.1,6.12556]
[1633109244681,0.09585744,3264.8,3264.7,1.20768643]
[1633109244882,0.09585744,3264.8,3264.3,0.071922]
[1633109245083,1.0452772,3264.8,3264.2,4.5945]
[1633109245283,0.09585744,3264.8,3264.0,3.10264717]
[1633109245481,0.09585744,3264.8,3264.0,0.003]
[1633109245880,0.09585744,3264.8,3264.3,0.99312822]
[1633109246285,0.79303857,3264.6,3264.3,0.99312822]
[1633109246681,0.09585744,3264.8,3264.3,0.99312822]
[1633109247081,0.09585744,3264.8,3264.0,9.13335785]
[1633109247283,0.09585744,3264.8,3264.0,6.12866]
[1633109247480,0.09585744,3264.8,3264.0,9.15026607]
[1633109247681,0.79394373,3264.6,3264.0,6.12866]
[1633109248082,0.79394373,3264.6,3264.1,0.11780452]
[1633109248284,3.06306,3264.7,3264.3,1.14111599]
[1633109248486,3.0630561,3264.9,3264.3,1.14111599]
[1633109248888,0.09585755,3264.6,3264.3,1.14111599]
[1633109249484,0.09585755,3264.6,3264.0,0.003]
[1633109249886,0.09585755,3264.6,3264.2,4.59442]
[1633109251086,0.09585755,3264.6,3264.5,1.15638112]
[1633109251488,0.09585755,3264.6,3264.0,0.003]
[1633109252886,0.09585755,3264.6,3264.1,1.19049078]
[1633109253086,0.09585755,3264.6,3264.3,4.59439]
[1633109253486,0.81008853,3264.8,3264.3,4.59439]
[1633109253686,0.81008853,3264.8,3264.4,0.11777961]
[1633109253886,0.81008853,3264.8,3264.6,1.21274673]
[1633109254091,0.81008853,3264.8,3264.6,4.59402]
[1633109254287,0.09587602,3264.7,3264.6,4.59402]
[1633109256491,0.09587602,3264.7,3264.6,5.88802]
[1633109256697,0.003,3265.0,3264.9,10.14952924]
[1633109256897,0.003,3265.0,3264.9,5.72607335]
[1633109257092,0.003,3265.0,3264.9,2.28832924]
[1633109257491,0.003,3265.0,3264.9,3.06511231]
[1633109257691,0.003,3265.0,3264.9,4.35911231]
[1633109258292,0.003,3265.0,3264.9,8.95147231]
[1633109259695,0.003,3265.0,3264.9,11.90893185]
[1633109259898,0.05101155,3265.0,3264.9,11.90893185]
[1633109264499,0.003,3265.0,3264.9,11.90893185]
[1633109265297,0.05101166,3265.0,3264.9,11.90893185]
[1633109269899,0.003,3265.0,3264.9,11.90893185]
[1633109270899,0.05101176,3265.0,3264.9,11.90893185]
[1633109272306,0.72997692,3266.3,3265.8,0.85310738]
[1633109272502,0.71948892,3266.3,3265.8,0.85310738]
[1633109272768,0.03293824,3266.4,3265.8,0.85310738]
[1633109272902,24.93532601,3267.1,3265.8,0.85310738]
[1633109272903,24.63306956,3267.1,3265.8,0.85310738]
[1633109273102,38.05904955,3266.7,3266.1,4.59171]
[1633109273303,14.96964955,3266.7,3266.1,4.59171]
[1633109273704,0.81076136,3266.5,3266.1,4.59171]
[1633109273908,0.21076136,3266.5,3266.1,4.59171]
[1633109274909,3.24535,3266.6,3266.1,4.59171]
[1633109275309,0.184,3266.6,3266.2,2.9641595]
[1633109275608,0.184,3266.6,3266.1,0.1892754]
[1633109276409,0.20825372,3266.6,3266.4,4.59078]
[1633109277205,0.20825372,3266.6,3266.4,4.58278]
[1633109278407,0.20825372,3266.6,3266.0,3.12010088]
[1633109278808,0.20825372,3266.6,3266.2,0.90147675]
[1633109279009,0.20825372,3266.6,3266.0,0.003]
[1633109279207,0.20825372,3266.6,3265.9,0.003]
[1633109279608,0.20825372,3266.6,3266.3,0.91408849]
[1633109279811,0.02425372,3266.6,3266.3,3.9252139]
[1633109280009,0.02425372,3266.6,3266.3,5.5139589]
[1633109280610,0.02425372,3266.6,3266.4,1.20216399]
[1633109280810,0.02425372,3266.6,3266.4,5.79279399]
[1633109281008,1.68614382,3266.8,3266.4,5.79279399]
[1633109281209,1.68614382,3266.8,3266.4,5.98201963]
[1633109281608,1.68614382,3266.8,3266.4,4.77985564]
[1633109282009,0.02429969,3266.7,3266.4,4.59063]
[1633109286613,1.68614382,3266.8,3266.5,0.1892132]
[1633109286814,1.68614382,3266.8,3266.6,4.59052]
[1633109287612,0.02431813,3266.7,3266.6,4.59052]
[1633109288280,0.02431813,3266.7,3266.2,1.13850835]
[1633109289077,0.02431813,3266.7,3266.3,0.83477145]
[1633109289676,0.02431813,3266.7,3266.5,4.59119]
[1633109292085,1.68614382,3266.8,3266.6,0.18920076]
[1633109292287,1.68614382,3266.8,3266.6,1.71210076]
[1633109292486,1.68614382,3266.8,3266.7,0.99195597]
[1633109292887,1.68614382,3266.8,3266.7,5.58264597]
[1633109293086,1.71047123,3266.8,3266.7,5.58264597]
[1633109293292,1.71047123,3266.8,3266.7,8.91083571]
[1633109293687,1.71047123,3266.8,3266.7,5.66255897]
[1633109295988,1.71047123,3266.8,3266.7,6.95655897]
[1633109296387,1.71047123,3266.8,3266.7,5.66255897]
[1633109297689,1.68614382,3266.8,3266.7,5.85172242]
[1633109297888,1.68614382,3266.8,3266.7,6.03572242]
[1633109298491,1.68614382,3266.8,3266.7,5.84655897]
[1633109298688,1.71047133,3266.8,3266.7,5.84655897]
[1633109300089,1.71047133,3266.8,3266.7,7.03455897]
[1633109300489,1.71047133,3266.8,3266.7,8.32855897]
[1633109300690,0.003,3267.0,3266.8,12.8]
[1633109300889,0.003,3267.0,3266.7,3.73786897]
[1633109300890,0.003,3267.0,3266.7,2.44386897]
[1633109301093,0.003,3267.0,3266.9,4.58933]
[1633109301491,0.003,3267.0,3266.9,5.49037505]
[1633109303092,0.003,3267.0,3266.9,6.99037505]
[1633109304091,0.01919012,3267.0,3266.9,6.99037505]
[1633109306892,0.01919012,3267.0,3266.9,8.28437505]
[1633109307696,0.004082,3267.0,3266.9,13.94233252]
[1633109308495,0.003,3267.5,3266.9,13.94233252]
[1633109308696,0.003,3267.5,3267.1,3.139243]
[1633109308901,0.003,3267.5,3267.2,1.17047086]
[1633109309096,0.003,3267.5,3267.3,1.5]
[1633109309300,0.003,3267.5,3267.4,0.76484238]
[1633109311297,0.003,3267.5,3267.4,5.35388238]
[1633109313699,0.003,3267.5,3267.4,6.69748238]
[1633109314103,0.003,3267.5,3267.4,6.90468956]
[1633109314702,0.003,3267.5,3267.4,6.69748238]
[1633109317504,0.97681012,3267.9,3267.4,6.69748238]
[1633109317704,14.70245106,3268.3,3267.4,6.69748238]
[1633109318708,15.47472487,3268.3,3267.4,6.69748238]
[1633109319707,15.47472487,3268.3,3267.5,0.20714503]
[1633109320108,15.47472487,3268.3,3267.4,0.76484238]
[1633109321108,15.47472487,3268.3,3267.9,1.15750082]
[1633109321313,15.47472487,3268.3,3267.9,4.58914]
[1633109321509,3.86852487,3268.3,3267.9,4.58914]
[1633109321913,3.09625106,3268.3,3267.9,4.58914]
[1633109322109,0.003,3268.5,3267.9,4.58914]
[1633109322912,0.003,3268.5,3267.9,5.57252326]
[1633109323109,0.76573544,3268.4,3267.9,6.52932799]
[1633109325112,0.76573544,3268.4,3267.9,6.73641088]
[1633109325511,0.003,3268.5,3267.9,6.73641088]
[1633109326513,0.003,3268.5,3267.9,4.79622289]
[1633109326915,3.0624581,3268.5,3267.9,4.79622289]
[1633109327515,3.0624581,3268.5,3267.9,5.77618917]